[Event "5th Baskent University Open 2022"]
[Site "Ankara"]
[Date "2022.07.04"]
[Round "5.22"]
[White "Metin, Enis"]
[Black "Kandaz, Berat Efe"]
[Result "1-0"]
[ECO "B22"]
[WhiteElo "1750"]
[BlackElo "1632"]
[Annotator "NA RC"]
[PlyCount "89"]
[EventDate "2022.07.02"]
[EventType "swiss"]
[EventCountry "TUR"]
[SourceTitle "playchess.com"]
[Source "ChessBase"]
[SourceQuality "1"]
[TimeControl "5400+30"]

1. e4 {[%emt 0:01:00]} c5 {[%emt 0:02:00]} 2. c3 {[%emt 0:00:00]} Nf6 {[%emt 0:00:30]} 3. e5 {[%emt 0:00:00]} Nd5 {[%emt 0:00:00]} 4. d4 {[%emt 0:00:30]} cxd4 {[%emt 0:00:00]} 5. Nf3 {[%emt 0:00:30]} e6 {[%emt 0:01:30]} 6. cxd4 {[%emt 0:00:00]} d6 {[%emt 0:02:30]} 7. Nc3 {[%emt 0:00:00]} Be7 {[%emt 0:02:30]} 8. Bd3 {[%emt 0:00:30]} Nc6 {[%emt 0:00:30]} 9. O-O {[%emt 0:02:30]} dxe5 {[%emt 0:04:30]} 10. dxe5 {[%emt 0:01:30]} Nxc3 {[%emt 0:01:30]} 11. bxc3 {[%emt 0:00:00]} Qc7 {[%emt 0:01:30]} 12. Re1 {[%emt 0:04:00]} b6 {[%emt 0:04:30]} 13. Qa4 {[%emt 0:09:30]} Bb7 {[%emt 0:02:30]} 14. Nd4 {[%emt 0:04:30]} a6 {[%emt 0:13:30]} 15. Nf3 {[%emt 0:01:30]} Bc5 {[%emt 0:05:30]} 16. Be3 {[%emt 0:08:30]} b5 {[%emt 0:04:30]} 17. Qg4 {[%emt 0:03:30]} Nxe5 {[%emt 0:12:30]} 18. Nxe5 {[%emt 0:01:30]} Qxe5 {[%emt 0:00:30]} 19. Bf4 {[%emt 0:00:30]} Qf6 {[%emt 0:02:30]} 20. Qg3 {[%emt 0:06:30]} O-O {[%emt 0:05:30]} 21. Re5 {[%emt 0:14:30]} Bd6 {[%emt 0:02:30]} 22. Bxh7+ {[%emt 0:01:30]} Kxh7 {[%emt 0:07:30]} 23. Rh5+ {[%emt 0:00:30]} Kg8 {[%emt 0:00:30]} 24. Bxd6 {[%emt 0:00:00]} Qg6 {[%emt 0:11:59]} 25. Qh3 {[%emt 0:00:00]} f5 {[%emt 0:00:57]} 26. Rh8+ {[%emt 0:00:30]} Kf7 {[%emt 0:00:08]} 27. Rxf8+ {[%emt 0:00:30]} Rxf8 {[%emt 0:00:30]} 28. Bxf8 {[%emt 0:00:30]} Kxf8 {[%emt 0:00:00]} 29. a4 {[%emt 0:04:30]} f4 {[%emt 0:02:45]} 30. axb5 {[%emt 0:02:30]} axb5 {[%emt 0:00:16]} 31. Qh8+ {[%emt 0:00:30]} Kf7 {[%emt 0:00:27]} 32. f3 {[%emt 0:00:00]} Bxf3 {[%emt 0:05:01]} 33. Ra7+ {[%emt 0:00:00]} Kf6 {[%emt 0:00:00]} 34. Qf8+ {[%emt 0:01:30]} Ke5 {[%emt 0:00:05]} 35. Qb8+ {[%emt 0:01:30]} Kf5 {[%emt 0:01:40]} 36. Qxb5+ {[%emt 0:01:30]} Bd5 {[%emt 0:01:12]} 37. Qd3+ {[%emt 0:00:00]} Kg5 {[%emt 0:01:39]} 38. Qxg6+ {[%emt 0:00:00]} Kxg6 {[%emt 0:00:06]} 39. Kf2 {[%emt 0:00:30]} Kf6 {[%emt 0:00:11]} 40. h4 {[%emt 0:04:30]} g6 {[%emt 0:00:37]} 41. Ra5 {[%emt 0:00:30]} Ke7 {[%emt 0:01:23]} 42. Rxd5 {[%emt 0:00:30]} exd5 {[%emt 0:00:30]} 43. Kf3 {[%emt 0:00:30]} Ke6 {[%emt 0:02:11]} 44. Kxf4 {[%emt 0:00:00]} Kf6 {[%emt 0:00:30]} 45. g4 {[%emt 0:00:00]} 1-0

[Event "5th Baskent University Open 2022"]
[Site "Ankara"]
[Date "2022.07.04"]
[Round "5.23"]
[White "Yildiz, Tunahan"]
[Black "Tarim, Metehan"]
[Result "1/2-1/2"]
[ECO "E75"]
[WhiteElo "1671"]
[BlackElo "1536"]
[Annotator "NA RC"]
[PlyCount "77"]
[EventDate "2022.07.02"]
[EventType "swiss"]
[EventCountry "TUR"]
[SourceTitle "playchess.com"]
[Source "ChessBase"]
[SourceQuality "1"]
[TimeControl "5400+30"]

1. d4 {[%emt 0:01:00]} Nf6 {[%emt 0:01:00]} 2. c4 {[%emt 0:00:30]} g6 {[%emt 0:00:00]} 3. Nc3 {[%emt 0:00:30]} Bg7 {[%emt 0:00:00]} 4. e4 {[%emt 0:00:30]} d6 {[%emt 0:00:30]} 5. Be2 {[%emt 0:00:00]} O-O {[%emt 0:00:30]} 6. Bg5 {[%emt 0:00:00]} c5 {[%emt 0:00:30]} 7. d5 {[%emt 0:00:00]} h6 {[%emt 0:00:00]} 8. Be3 {[%emt 0:01:00]} e6 {[%emt 0:00:00]} 9. Nf3 {[%emt 0:00:00]} exd5 {[%emt 0:00:00]} 10. cxd5 {[%emt 0:00:00]} Re8 {[%emt 0:02:00]} 11. Nd2 {[%emt 0:00:30]} a6 {[%emt 0:00:30]} 12. a4 {[%emt 0:00:30]} Nbd7 {[%emt 0:01:30]} 13. O-O {[%emt 0:00:30]} Rb8 {[%emt 0:00:30]} 14. f3 {[%emt 0:07:30]} Qe7 {[%emt 0:09:30]} 15. Nc4 {[%emt 0:03:30]} Ne5 {[%emt 0:03:30]} 16. Nb6 {[%emt 0:05:30]} Qc7 {[%emt 0:00:30]} 17. a5 {[%emt 0:05:30]} Ned7 {[%emt 0:02:30]} 18. Nca4 {[%emt 0:06:30]} Nxb6 {[%emt 0:00:30]} 19. axb6 {[%emt 0:01:30]} Qe7 {[%emt 0:01:30]} 20. Qd2 {[%emt 0:02:30]} Kh7 {[%emt 0:01:30]} 21. Ra3 {[%emt 0:09:30]} Bd7 {[%emt 0:01:30]} 22. Nc3 {[%emt 0:11:30]} Qd8 {[%emt 0:02:30]} 23. Rb1 {[%emt 0:00:00]} a5 {[%emt 0:07:30]} 24. Rxa5 {[%emt 0:03:00]} Qxb6 {[%emt 0:00:30]} 25. b4 {[%emt 0:00:30]} Nh5 {[%emt 0:00:30]} 26. Nb5 {[%emt 0:02:30]} f5 {[%emt 0:03:30]} 27. bxc5 {[%emt 0:03:30]} dxc5 {[%emt 0:03:30]} 28. Na3 {[%emt 0:01:30]} Qf6 {[%emt 0:00:30]} 29. g4 {[%emt 0:00:30]} fxg4 {[%emt 0:01:30]} 30. fxg4 {[%emt 0:03:30]} Rxe4 {[%emt 0:00:00]} 31. gxh5 {[%emt 0:02:30]} Rbe8 {[%emt 0:00:00]} 32. Nc2 {[%emt 0:02:30]} Bf5 {[%emt 0:01:30]} 33. Rxb7 {[%emt 0:02:30]} Rxe3 {[%emt 0:03:30]} 34. Nxe3 {[%emt 0:13:04]} Qg5+ {[%emt 0:00:00]} 35. Kf2 {[%emt 0:03:01]} Qh4+ {[%emt 0:02:00]} 36. Kg1 {[%emt 0:00:30]} Qg5+ {[%emt 0:00:00]} 37. Kf2 {[%emt 0:00:29]} Qh4+ {[%emt 0:00:00]} 38. Kg1 {[%emt 0:02:48]} Qg5+ {[%emt 0:00:00]} 39. Kf2 {[%emt 0:00:03]} 1/2-1/2

[Event "5th Baskent University Open 2022"]
[Site "Ankara"]
[Date "2022.07.04"]
[Round "5.24"]
[White "Kargi, Mert"]
[Black "Gursu, Ahmet Burak"]
[Result "0-1"]
[ECO "D79"]
[WhiteElo "1767"]
[BlackElo "1533"]
[Annotator "NA RC"]
[PlyCount "108"]
[EventDate "2022.07.02"]
[EventType "swiss"]
[EventCountry "TUR"]
[SourceTitle "playchess.com"]
[Source "ChessBase"]
[SourceQuality "1"]
[TimeControl "5400+30"]

1. c4 {[%emt 0:01:00]} c6 {[%emt 0:01:00]} 2. Nf3 {[%emt 0:00:30]} d5 {[%emt 0:00:30]} 3. g3 {[%emt 0:00:30]} g6 {[%emt 0:02:30]} 4. Bg2 {[%emt 0:01:30]} Bg7 {[%emt 0:00:00]} 5. d4 {[%emt 0:01:30]} Nf6 {[%emt 0:02:00]} 6. O-O {[%emt 0:00:30]} O-O {[%emt 0:00:30]} 7. cxd5 {[%emt 0:02:30]} cxd5 {[%emt 0:02:30]} 8. Ne5 {[%emt 0:00:30]} Nc6 {[%emt 0:01:30]} 9. Nc3 {[%emt 0:00:30]} e6 {[%emt 0:12:30]} 10. f4 {[%emt 0:04:30]} Ne7 {[%emt 0:03:30]} 11. Be3 {[%emt 0:01:30]} b6 {[%emt 0:01:30]} 12. Qd3 {[%emt 0:07:30]} Nf5 {[%emt 0:03:30]} 13. Bf2 {[%emt 0:00:30]} Bb7 {[%emt 0:00:00]} 14. Rfc1 {[%emt 0:06:30]} Nd6 {[%emt 0:03:00]} 15. Nb5 {[%emt 0:01:30]} Nfe4 {[%emt 0:15:30]} 16. Be1 {[%emt 0:00:30]} a5 {[%emt 0:01:30]} 17. a4 {[%emt 0:05:30]} f6 {[%emt 0:03:30]} 18. Nc6 {[%emt 0:02:30]} Qd7 {[%emt 0:01:30]} 19. Nca7 {[%emt 0:00:30]} Ba6 {[%emt 0:01:30]} 20. Rc7 {[%emt 0:00:30]} Qxc7 {[%emt 0:00:30]} 21. Nxc7 {[%emt 0:00:30]} Bxd3 {[%emt 0:00:30]} 22. Nxa8 {[%emt 0:00:30]} Rxa8 {[%emt 0:00:30]} 23. exd3 {[%emt 0:01:30]} Rxa7 {[%emt 0:05:30]} 24. dxe4 {[%emt 0:03:30]} Nxe4 {[%emt 0:00:30]} 25. Bxe4 {[%emt 0:00:30]} dxe4 {[%emt 0:00:30]} 26. Rc1 {[%emt 0:00:30]} f5 {[%emt 0:00:00]} 27. Bf2 {[%emt 0:01:30]} Rb7 {[%emt 0:00:00]} 28. Kf1 {[%emt 0:04:30]} b5 {[%emt 0:02:30]} 29. Rc8+ {[%emt 0:00:30]} Kf7 {[%emt 0:00:30]} 30. Ra8 {[%emt 0:03:30]} bxa4 {[%emt 0:00:30]} 31. Rxa5 {[%emt 0:00:00]} Rxb2 {[%emt 0:00:30]} 32. Ra7+ {[%emt 0:00:00]} Kg8 {[%emt 0:01:30]} 33. Ra8+ {[%emt 0:00:00]} Bf8 {[%emt 0:08:30]} 34. d5 {[%emt 0:00:00]} exd5 {[%emt 0:00:00]} 35. Bc5 {[%emt 0:00:30]} Rxh2 {[%emt 0:00:00]} 36. Rxf8+ {[%emt 0:00:30]} Kg7 {[%emt 0:00:00]} 37. Rd8 {[%emt 0:13:30]} Rd2 {[%emt 0:06:00]} 38. Be3 {[%emt 0:00:30]} Rd3 {[%emt 0:00:30]} 39. Kf2 {[%emt 0:00:00]} h6 {[%emt 0:02:30]} 40. Rd7+ {[%emt 0:01:00]} Kf6 {[%emt 0:00:30]} 41. Rd6+ {[%emt 0:00:30]} Kf7 {[%emt 0:00:30]} 42. Bc5 {[%emt 0:08:30]} Rf3+ {[%emt 0:05:04]} 43. Kg2 {[%emt 0:00:30]} g5 {[%emt 0:00:07]} 44. Rxd5 {[%emt 0:03:30]} Kg6 {[%emt 0:00:02]} 45. Rd6+ {[%emt 0:08:48]} Kh5 {[%emt 0:00:11]} 46. Ra6 {[%emt 0:01:12]} gxf4 {[%emt 0:00:53]} 47. gxf4 {[%emt 0:00:41]} Rxf4 {[%emt 0:00:19]} 48. Be3 {[%emt 0:02:53]} Rg4+ {[%emt 0:01:22]} 49. Kh3 {[%emt 0:00:01]} f4 {[%emt 0:00:45]} 50. Bf2 {[%emt 0:00:46]} e3 {[%emt 0:01:18]} 51. Be1 {[%emt 0:00:01]} Rg1 {[%emt 0:00:22]} 52. Ra5+ {[%emt 0:03:35]} Kg6 {[%emt 0:00:30]} 53. Bc3 {[%emt 0:11:45]} e2 {[%emt 0:02:05]} 54. Bd2 {[%emt 0:00:43]} f3 {[%emt 0:03:51]} 0-1

[Event "5th Baskent University Open 2022"]
[Site "Ankara"]
[Date "2022.07.05"]
[Round "6.1"]
[White "Gunduz, Umut Erdem"]
[Black "Rasulov, Vugar"]
[Result "0-1"]
[ECO "C54"]
[WhiteElo "2368"]
[BlackElo "2458"]
[Annotator "TA"]
[PlyCount "64"]
[EventDate "2022.07.02"]
[EventType "swiss"]
[EventCountry "TUR"]
[SourceTitle "playchess.com"]
[Source "ChessBase"]
[SourceQuality "1"]
[TimeControl "5400+30"]

{[%evp 17,64,0,0,0,5,0,12,0,0,0,0,-8,0,0,0,0,1,1,2,0,0,-39,0,-102,-56,-107,-79,-165,-160,-131,-144,-197,-208,-195,-185,-297,-297,-303,-276,-293,-271,-791,-587,-670,-653,-1008,-988,-2816,-1953]} 1. e4 {[%emt 0:01:00]} e5 {[%emt 0:01:00]} 2. Nf3 {[%emt 0:00:00]} Nc6 {[%emt 0:00:00]} 3. Bc4 {[%emt 0:01:00]} Nf6 {[%emt 0:00:00]} 4. d3 {[%emt 0:00:30]} Bc5 {[%emt 0:00:30]} 5. c3 {[%emt 0:00:30]} d6 {[%emt 0:00:30][%cal Bd7d6,Bd6d5,Bd5e4][%mdl 32]} 6. h3 {[%emt 0:00:30]} a6 {[%emt 0:00:30]} 7. Bb3 {[%emt 0:00:00]} Ba7 {[%emt 0:00:30]} 8. Nbd2 {[%emt 0:00:00]} O-O {[%emt 0:01:30]} 9. Nf1 {[%emt 0:01:30]} d5 {[%emt 0:03:30] 9...d5 has become a bit dusty these days.} 10. Qe2 {[%emt 0:00:30] C54: Giuoco Piano: 4 c3 Nf6, main lines with 5 d4 and 5 d3.} a5 {[%emt 0:03:30][%cal Oa5a4]} 11. Ng3 {[%emt 0:03:30] [#]} a4 $146 {[%emt 0:03:30]} ({Predecessor:} 11... h6 12. Ba4 Re8 13. O-O Bd7 14. Bd2 Bc5 15. Rfe1 Bd6 16. exd5 Nxd5 17. Ne4 Nf6 {½-½ (27) Herzog,K (2052)-Janosi,E (2197) LSS email 2008}) 12. Bxa4 {[%emt 0:08:30] The position is equal.} Bxf2+ {[%emt 0:02:30]} 13. Qxf2 {[%emt 0:00:30] Threatens to win with Bxc6.} Rxa4 {[%emt 0:00:00]} 14. b3 {[%emt 0:05:30] [#]} dxe4 $1 {[%emt 0:07:00]} 15. bxa4 {[%emt 0:01:30]} Qxd3 {[%emt 0:07:30]} 16. Qd2 {[%emt 0:18:30] Black must now prevent Qxd3.} Rd8 {[%emt 0:09:30]} 17. Qxd3 {[%emt 0:02:30]} Rxd3 {[%emt 0:01:30][%mdl 64] [#] Pin} 18. Nxe5 {[%emt 0:01:30]} Nxe5 {[%emt 0:01:30]} 19. Ne2 {[%emt 0:01:30]} e3 {[%emt 0:14:30][%mdl 1024] Black has compensation.} 20. O-O {[%emt 0:07:30]} (20. Nf4 $11 Rd8 21. Bxe3) 20... Nd5 $36 {[%emt 0:03:30][%mdl 2048] Black has good play. Black is much more active.} (20... Nc4 $17 21. a5 Nd5) 21. Ba3 {[%emt 0:10:30]} (21. a5 $15) 21... g5 {[%emt 0:05:30]} ({Don't do} 21... Nxc3 22. Nxc3 Rxc3 23. Bb2 $16) 22. Bc5 {[%emt 0:10:30]} (22. Rfd1 $17) 22... b6 $19 {[%emt 0:04:30]} (22... Nxc3 $2 23. Nxc3 Nd7 {[#]} 24. Rf5 $1 $18) 23. Bd4 {[%emt 0:00:30]} Nc4 {[%emt 0:00:30] And now ...Rd2 would win. Pair of Knights!} 24. Rad1 {[%emt 0:08:20]} (24. a5 $17) 24... Rd2 {[%emt 0:02:30]} 25. Ng3 {[%emt 0:05:15]} ({Not} 25. Rxd2 $2 exd2 26. Ra1 Nde3 $19) 25... f5 {[%emt 0:02:30] Against Ne4} ({Inferior is} 25... Rxa2 26. Nf5) 26. Rxd2 {[%emt 0:04:02]} (26. a5 $142) 26... exd2 {[%emt 0:00:30]} 27. Rd1 {[%emt 0:01:02]} c5 {[%emt 0:00:30][%cal Bc7c5,Bc5d4,Bd4c3][%mdl 32]} 28. Nf1 {[%emt 0:02:53]} cxd4 {[%emt 0:00:30]} 29. Nxd2 $2 {[%emt 0:00:00]} (29. cxd4 Bd7 30. Nxd2 Bxa4 31. Nb3) 29... Nce3 {[%emt 0:01:30] Black is clearly winning.} 30. Re1 {[%emt 0:02:06]} dxc3 {[%emt 0:02:30]} 31. Nf1 {[%emt 0:00:14]} f4 {[%emt 0:00:30][%cal Bf5f4,Bf4e3][%mdl 32]} 32. Nxe3 {[%emt 0:00:09]} fxe3 {[%emt 0:00:00] Weighted Error Value: White=0.76/Black=0.17 (very precise)} 0-1

[Event "5th Baskent University Open 2022"]
[Site "Ankara"]
[Date "2022.07.05"]
[Round "6.2"]
[White "Huseyinoglu, Alihan"]
[Black "Annaberdiev, Meilis"]
[Result "0-1"]
[ECO "A41"]
[WhiteElo "2213"]
[BlackElo "2484"]
[Annotator "TA"]
[PlyCount "84"]
[EventDate "2022.07.02"]
[EventType "swiss"]
[EventCountry "TUR"]
[SourceTitle "playchess.com"]
[Source "ChessBase"]
[SourceQuality "1"]
[TimeControl "5400+30"]

{[%evp 9,84,28,58,31,36,33,36,38,45,17,24,7,26,22,28,28,27,30,41,17,46,7,18,0,0,0,12,0,0,5,15,0,10,-2,6,6,5,7,14,-14,-10,-16,-17,-17,-20,-23,0,-45,-39,-39,-37,-56,-62,-60,-56,-55,-37,-32,-37,-81,-48,-56,-18,-45,-45,-272,-278,-264,-187,-256,-81,-81,-81,-2855,-2087,-1130,-1093]} 1. d4 {[%emt 0:01:00]} d6 {[%emt 0:01:00]} 2. Nf3 {[%emt 0:03:30]} g6 {[%emt 0:00:30]} 3. g3 {[%emt 0:01:30]} Bg7 {[%emt 0:00:30]} 4. Bg2 {[%emt 0:00:30]} Nd7 {[%emt 0:00:00]} 5. O-O {[%emt 0:04:30]} e5 {[%emt 0:00:00]} 6. Nc3 {[%emt 0:01:30] A41: 1 d4 d6: Tartakower System and Modern Defence.} Ngf6 {[%emt 0:00:30]} 7. dxe5 {[%emt 0:17:30] was the old line (7.e4).} dxe5 {[%emt 0:00:30]} 8. Nd2 {[%emt 0:02:30] White is slightly better.} O-O {[%emt 0:04:30]} 9. b3 {[%emt 0:01:30]} Re8 {[%emt 0:02:30][%cal Oe5e4]} 10. Ba3 {[%emt 0:04:30]} Bf8 {[%emt 0:15:30]} 11. Qc1 {[%emt 0:08:30] [#]} Bxa3 $146 {[%emt 0:15:30]} ({Predecessor:} 11... Nb6 12. Rd1 Bxa3 13. Qxa3 Qe7 14. Qxe7 Rxe7 15. Nde4 Nxe4 16. Rd8+ Kg7 17. Nxe4 Bh3 18. Rxa8 Bxg2 19. Kxg2 Nxa8 {1-0 (48) Galopoulos,N (2360)-Vafiadis,K (2271) Thessaloniki 2021}) 12. Qxa3 {[%emt 0:00:30]} Qe7 {[%emt 0:00:00]} 13. Qxe7 {[%emt 0:05:30]} Rxe7 {[%emt 0:00:00]} 14. Rfd1 {[%emt 0:00:30]} Kg7 {[%emt 0:05:30]} 15. b4 {[%emt 0:05:30]} a5 {[%emt 0:11:30]} 16. a3 {[%emt 0:01:30]} Nb6 {[%emt 0:05:30]} 17. Nb3 {[%emt 0:08:30]} axb4 {[%emt 0:00:30]} 18. axb4 {[%emt 0:00:30]} Rxa1 {[%emt 0:00:00]} 19. Rxa1 {[%emt 0:00:00]} c6 {[%emt 0:01:00]} 20. Rd1 {[%emt 0:09:00]} Rc7 {[%emt 0:03:30]} 21. Nc5 {[%emt 0:03:19]} Kf8 {[%emt 0:10:30]} 22. e4 {[%emt 0:04:42]} Ke7 {[%emt 0:01:30]} 23. f3 {[%emt 0:00:24]} Nc4 {[%emt 0:03:37]} 24. Kf2 {[%emt 0:03:36]} b6 {[%emt 0:01:44]} 25. Nb3 {[%emt 0:01:49]} (25. N5a4 {is interesting.} b5 26. Bf1 Nd6 27. Nc5) 25... Na3 {[%emt 0:01:34]} 26. Rc1 {[%emt 0:06:47]} Be6 {[%emt 0:00:56][%cal Oa3c2]} 27. Nd2 {[%emt 0:00:16]} Rd7 {[%emt 0:00:09]} 28. Ndb1 {[%emt 0:01:05]} Nxb1 {[%emt 0:02:58]} 29. Nxb1 {[%emt 0:00:30]} Ra7 {[%emt 0:00:02]} 30. Ke3 {[%emt 0:01:08]} Ra4 {[%emt 0:05:48]} 31. c3 $1 {[%emt 0:00:04]} Ra1 $36 {[%emt 0:00:15][%mdl 2048] Black is more active.} 32. Rh1 {[%emt 0:01:04]} Ne8 {[%emt 0:00:56]} 33. Nd2 {[%emt 0:00:40]} Ra2 {[%emt 0:00:02]} 34. Bf1 {[%emt 0:01:27]} Nd6 {[%emt 0:01:08] Strongly threatening ...Ra3. Black is more active.} 35. Bd3 {[%emt 0:00:30]} f5 {[%emt 0:00:30][%cal Of5f4]} 36. exf5 {[%emt 0:00:30]} gxf5 {[%emt 0:00:30]} 37. f4 $2 {[%emt 0:00:39] [#]} (37. Re1 $15) 37... e4 $19 {[%emt 0:00:53]} 38. Be2 {[%emt 0:01:57]} Ne8 {[%emt 0:00:30]} 39. Rc1 {[%emt 0:00:26]} (39. c4 {was worth a try.}) 39... c5 $2 {[%emt 0:01:57]} (39... Nf6 $19 {has better winning chances. White must now prevent ...Nd5+.} 40. Nf1 Nd5+ 41. Kf2 Ra3) 40. bxc5 $17 {[%emt 0:00:30]} bxc5 {[%emt 0:00:30] [#] And now ...Nf6 would win.} 41. Bc4 $2 {[%emt 0:00:35][%mdl 8192]} (41. Nb1 $17) 41... Bxc4 $19 {[%emt 0:02:32]} ({Weaker is} 41... Rxd2 42. Kxd2 Bxc4 43. Rb1 $19) 42. Nxc4 {[%emt 0:00:30]} Nf6 {[%emt 0:00:00] Weighted Error Value: White=0.48/Black=0.12 (very precise)} 0-1

[Event "5th Baskent University Open 2022"]
[Site "Ankara"]
[Date "2022.07.05"]
[Round "6.3"]
[White "Caputcuoglu, Zeki Berke"]
[Black "Atabayev, Saparmyrat"]
[Result "0-1"]
[ECO "B90"]
[WhiteElo "2203"]
[BlackElo "2447"]
[Annotator "TA"]
[PlyCount "84"]
[EventDate "2022.07.02"]
[EventType "swiss"]
[EventCountry "TUR"]
[SourceTitle "playchess.com"]
[Source "ChessBase"]
[SourceQuality "1"]
[TimeControl "5400+30"]

{[%evp 10,84,26,6,37,41,39,60,50,52,62,65,91,60,79,36,45,24,29,37,73,80,79,28,22,30,27,23,22,28,36,15,15,22,26,15,23,10,29,-6,0,-31,0,0,0,0,0,0,0,0,0,0,0,0,0,0,8,0,0,0,0,0,0,-2,-8,-35,-28,-18,-27,-43,-18,-18,0,-83,-73,-443,-435]} 1. e4 {[%emt 0:02:00]} c5 {[%emt 0:01:00]} 2. Nf3 {[%emt 0:00:30]} d6 {[%emt 0:00:30]} 3. d4 {[%emt 0:00:30]} cxd4 {[%emt 0:00:30]} 4. Nxd4 {[%emt 0:00:30]} Nf6 {[%emt 0:00:00]} 5. Nc3 {[%emt 0:00:00]} a6 {[%emt 0:00:00]} 6. a3 {[%emt 0:00:00]} g6 {[%emt 0:00:30] B90: Sicilian Najdorf: Unusual White 6th moves, 6 Be3 Ng4 and 6 Be3 e5.} 7. f3 {[%emt 0:00:00]} Bg7 {[%emt 0:00:30]} 8. Be3 {[%emt 0:00:00]} O-O {[%emt 0:13:30] White is slightly better. 8...Nc6 is vanishing.} 9. Qd2 {[%emt 0:00:00]} Nc6 {[%emt 0:01:30]} 10. O-O-O {[%emt 0:01:00]} Nxd4 {[%emt 0:04:30]} 11. Bxd4 {[%emt 0:00:30]} Be6 {[%emt 0:01:30]} 12. g4 {[%emt 0:02:30][%cal Bg2g4,Bg4g5][%mdl 32]} Qa5 {[%emt 0:01:30]} 13. Kb1 {[%emt 0:04:30][%cal Oc3d5]} Rfc8 {[%emt 0:00:30]} 14. h4 {[%emt 0:04:30][%cal Oh4h5]} h5 {[%emt 0:03:30]} 15. g5 {[%emt 0:07:30]} Ne8 {[%emt 0:01:30]} 16. Nd5 {[%emt 0:04:30]} (16. f4 $16) 16... Qxd2 $11 {[%emt 0:01:30]} 17. Rxd2 {[%emt 0:00:00]} Bxd5 {[%emt 0:00:30]} 18. exd5 {[%emt 0:01:00]} Bxd4 {[%emt 0:01:30]} 19. Rxd4 {[%emt 0:00:00] [#]} Ng7 $146 {[%emt 0:03:30]} ({Predecessor:} 19... b5 20. Bh3 Rc5 21. Re1 Ra7 22. c3 Rac7 23. Kc2 Ng7 24. Kd3 Kf8 25. Ke4 e5 {0-1 (40) Colonetti,F (2015)-Santagati,A (2312) Alessandria 2018}) 20. Bh3 {[%emt 0:03:00]} Rc7 {[%emt 0:01:30]} 21. Re1 {[%emt 0:02:30]} b5 {[%emt 0:00:30]} 22. Re3 {[%emt 0:05:30]} Rf8 {[%emt 0:19:30]} 23. f4 {[%emt 0:20:30]} (23. Rde4 {seems wilder.} f6 24. f4 Kf7 25. Re2) 23... f6 {[%emt 0:01:30]} 24. Rg3 {[%emt 0:00:30]} fxg5 {[%emt 0:01:30]} 25. Rxg5 {[%emt 0:01:30]} Rc4 {[%emt 0:01:30]} 26. Rxc4 {[%emt 0:02:30]} bxc4 {[%emt 0:00:30][%mdl 4096] Endgame KRB-KRN} 27. f5 $1 {[%emt 0:03:30]} ({Reject} 27. Rxg6 Rxf4 28. Bd7 Rxh4 $17) 27... gxf5 {[%emt 0:00:30][%cal Bg6f5,Bf5f4,Bf4f3][%mdl 32]} 28. Bf1 {[%emt 0:01:30]} f4 {[%emt 0:03:30]} 29. Bxc4 {[%emt 0:01:30]} a5 {[%emt 0:04:30]} 30. Kc1 {[%emt 0:04:30]} f3 {[%emt 0:01:30]} 31. Kd2 {[%emt 0:00:30]} Rf4 {[%emt 0:00:00]} 32. Bf1 {[%emt 0:02:30]} Rxh4 {[%emt 0:01:00] And now ...Rh2+ would win.} 33. Ke3 {[%emt 0:04:30]} Kf7 {[%emt 0:14:11]} 34. Kxf3 {[%emt 0:01:30]} Kf6 {[%emt 0:00:10]} 35. Rg1 {[%emt 0:01:30]} Rd4 {[%emt 0:01:09]} 36. Bd3 {[%emt 0:02:24]} Rxd5 {[%emt 0:04:52]} 37. Rg6+ {[%emt 0:02:04]} Kf7 {[%emt 0:00:05][%cal Od5d3] [#] White must now prevent ...Rxd3+!} 38. Rh6 {[%emt 0:00:14] Hoping for Bc4.} Rg5 {[%emt 0:03:36]} 39. b4 {[%emt 0:01:01]} axb4 {[%emt 0:04:31]} 40. axb4 {[%emt 0:00:02]} Ne6 {[%emt 0:00:28]} 41. Ke3 {[%emt 0:03:22]} (41. Bc4 $11) 41... Re5+ $17 {[%emt 0:00:11]} 42. Kf3 $2 {[%emt 0:01:11][%mdl 8192] [#]} (42. Kd2 $17 {is tougher.}) 42... Nf8 $1 {[%emt 0:00:37] Weighted Error Value: White=0.33/Black=0.06 (flawless)} 0-1